[Event "VIII Open Semana Santa 2024"]
[Site "San Vicente del Raspeig"]
[Date "2024.03.30"]
[Round "6.17"]
[White "Alexakis, Dimitris"]
[Black "Martin Duque, Jesus"]
[Result "1-0"]
[ECO "B12"]
[WhiteElo "2448"]
[BlackElo "2332"]
[Annotator "TA"]
[PlyCount "35"]
[EventDate "2024.03.27"]
[EventType "swiss"]
[EventCountry "ESP"]
[SourceTitle "playchess.com"]
[Source "ChessBase"]
[SourceQuality "1"]
[TimeControl "5400+30"]

{[%evp 10,35,24,29,37,32,39,33,145,162,162,141,199,195,204,219,220,227,227,220,308,311,401,391,433,418,403,400]} 1. e4 {[%emt 0:03:17]} c6 {[%emt 0:00:01]} 2. d4 {[%emt 0:02:46]} d5 {[%emt 0:00:03]} 3. e5 {[%emt 0:00:15]} Bf5 {[%emt 0:00:04]} 4. Nf3 {[%emt 0:00:03]} e6 {[%emt 0:00:08]} 5. Be2 {[%emt 0:00:10][%cal Bf1e2,Be2d3,Bd3e4][%mdl 32]} Nd7 {[%emt 0:00:03]} 6. O-O {[%emt 0:00:16]} a5 {[%emt 0:00:04]} 7. a4 {[%emt 0:08:39]} f6 {[%emt 0:00:06]} 8. Bd3 {[%emt 0:10:58]} Ne7 {[%emt 0:37:59] [#]} (8... Bxd3 $14 9. cxd3 (9. Qxd3 fxe5 10. dxe5 Nc5 $14) 9... Bb4) 9. exf6 $1 $16 {[%emt 0:12:01]} Nxf6 {[%emt 0:10:15]} 10. Re1 {[%emt 0:00:21]} Qb6 {[%emt 0:04:38]} (10... g6 $16 11. Nbd2 Qc8) 11. Ng5 $18 {[%emt 0:13:47]} Ne4 {[%emt 0:10:18]} 12. Nxe4 {[%emt 0:04:10]} dxe4 {[%emt 0:00:06]} 13. Bxe4 {[%emt 0:00:04]} O-O-O {[%emt 0:00:24]} 14. c3 {[%emt 0:00:27]} g6 {[%emt 0:00:35]} 15. Na3 {[%emt 0:06:56]} Bg7 {[%emt 0:00:09]} 16. Bg5 {[%emt 0:04:00]} Rd7 {[%emt 0:00:24]} 17. Nc4 {[%emt 0:02:36]} Qc7 {[%emt 0:00:07]} 18. Qb3 {[%emt 0:02:20] White took control after the opening.   Weighted Error Value: White=0.03 (flawless) /Black=0.43.  Mistake:       	---       	Black=2      Inaccurate:     	---       	Black=1      OK:         	White=6     	Black=3      Best:        	White=1     	---        Strong:       	White=1     	---} 1-0

[Event "VIII Open Semana Santa 2024"]
[Site "San Vicente del Raspeig"]
[Date "2024.03.30"]
[Round "6.18"]
[White "Williams, Justus"]
[Black "Domingo Nunez, Ruben"]
[Result "1/2-1/2"]
[ECO "A43"]
[WhiteElo "2347"]
[BlackElo "2441"]
[Annotator "TA"]
[PlyCount "92"]
[EventDate "2024.03.27"]
[EventType "swiss"]
[EventCountry "ESP"]
[SourceTitle "playchess.com"]
[Source "ChessBase"]
[SourceQuality "1"]
[TimeControl "5400+30"]

{[%evp 12,92,55,59,50,54,53,45,58,33,41,41,44,37,42,28,26,18,14,11,18,20,26,24,15,10,26,33,31,37,41,50,35,30,41,41,60,74,63,61,63,61,60,74,108,27,18,12,50,-112,-94,-113,46,47,169,192,222,217,712,702,1116,409,861,856,760,549,5688,5688,29976,29977,29977,29977,29971,318,296,302,291,0,1689,0,0,0,283]} 1. c4 {[%emt 0:04:01]} g6 {[%emt 0:00:32]} 2. Nf3 {[%emt 0:00:29]} Bg7 {[%emt 0:00:11]} 3. d4 {[%emt 0:02:15][%cal Bd2d4,Bd4d5][%mdl 32]} c5 {[%emt 0:01:46]} 4. d5 {[%emt 0:03:52]} d6 {[%emt 0:00:11]} 5. e4 {[%emt 0:01:33]} e6 {[%emt 0:00:08]} 6. Be2 {[%emt 0:06:05]} Ne7 {[%emt 0:00:21]} 7. Nc3 {[%emt 0:01:21]} exd5 {[%emt 0:02:10]} 8. cxd5 {[%emt 0:01:02]} O-O {[%emt 0:02:40]} 9. Bf4 {[%emt 0:03:11]} Bg4 {[%emt 0:03:24] White is slightly better.} 10. Qb3 {[%emt 0:06:03]} Na6 {[%emt 0:02:26][%cal Oc5c4]} 11. h3 {[%emt 0:08:54]} Bxf3 {[%emt 0:03:56]} 12. Bxf3 {[%emt 0:00:15]} Rb8 {[%emt 0:00:35][%cal Ob7b5]} 13. Nb5 {[%emt 0:04:20]} Nc8 {[%emt 0:07:34][%cal Be7c8,Bc8a7,Ba7b5,Bb5d4][%mdl 32]} 14. O-O {[%emt 0:04:36]} Nc7 {[%emt 0:04:09]} 15. Rac1 {[%emt 0:05:57][%cal Oc1c5]} a6 {[%emt 0:11:18]} 16. Nxc7 {[%emt 0:01:21]} Qxc7 {[%emt 0:00:02]} 17. Qa3 {[%emt 0:01:50]} Na7 {[%emt 0:07:28]} 18. b4 {[%emt 0:09:02][%cal Rb4c5]} Nb5 {[%emt 0:06:17]} 19. Qe3 {[%emt 0:08:20]} b6 {[%emt 0:03:06]} 20. Be2 {[%emt 0:04:35] Black is weak on the light squares} Rbe8 {[%emt 0:25:31]} 21. a4 {[%emt 0:03:34]} Nd4 {[%emt 0:00:04]} 22. Bxa6 {[%emt 0:03:53]} f5 {[%emt 0:00:47]} 23. Qg3 {[%emt 0:10:00]} Qa7 {[%emt 0:00:03]} 24. Bb5 {[%emt 0:00:19] A strong pair of Bishops.} Be5 {[%emt 0:04:40]} 25. bxc5 {[%emt 0:01:01]} bxc5 {[%emt 0:02:16]} 26. Bxe5 {[%emt 0:00:23]} Rxe5 {[%emt 0:00:06]} 27. exf5 {[%emt 0:05:48]} Rfxf5 {[%emt 0:01:45]} 28. Qh4 {[%emt 0:00:00]} (28. Kh2 $16) 28... Qa5 {[%emt 0:06:13]} 29. f4 {[%emt 0:00:00][%cal Bf2f4,Bf4f5,Bf5f6][%mdl 32]} Re2 {[%emt 0:01:19]} 30. Rce1 $2 {[%emt 0:00:00]} (30. Rb1 $14 Nxb5 31. axb5 (31. Rxb5 Qxa4 32. Rb7 Rh5 $14)) 30... Rh5 $1 $17 {[%emt 0:00:34]} 31. Qxh5 {[%emt 0:00:00]} gxh5 {[%emt 0:02:43]} (31... Rxe1 $6 32. Qg4 (32. Qh4 Rxf1+ 33. Kxf1 Nxb5 $11) 32... Nf5 33. Rxe1 Qxe1+ 34. Kh2 $11) ({Black should play} 31... Rxg2+ $1 $17 32. Kxg2 gxh5) 32. Bxe2 $14 {[%emt 0:00:00] Black must now prevent f5.} c4 {[%emt 0:00:00]} (32... Nf5 $1 $14) 33. f5 $18 {[%emt 0:00:33]} (33. Bxc4 Qc5 34. Bd3 (34. Re8+ Kf7 $15) 34... Nf3+ 35. Kh1 Nxe1 36. Rxe1 Qxd5 $15) 33... Qxd5 {[%emt 0:01:31] [#]} 34. f6 $1 {[%emt 0:00:25] aiming for f7+.} Kf7 $2 {[%emt 0:00:15]} (34... Qc5 35. Rf2 Kf8 (35... Kf7 $2 36. Bxc4+ Qxc4 37. Re7+ Kf8 38. f7 $18)) 35. Kh1 {[%emt 0:03:02]} Ne6 {[%emt 0:01:25]} 36. Rc1 {[%emt 0:00:00]} (36. Bf3 $142 Qf5 37. Bc6 (37. Bg4 Qxf1+ 38. Rxf1 hxg4 $18)) 36... Qg5 {[%emt 0:00:20]} (36... c3 $142 37. Rxc3 Qe5) 37. Rxc4 {[%emt 0:00:00]} d5 {[%emt 0:00:01]} 38. Rb4 {[%emt 0:00:00]} Qe5 {[%emt 0:01:43]} 39. Rb7+ {[%emt 0:00:00]} Kf8 {[%emt 0:00:00] [#]} 40. Rc1 $1 {[%emt 0:01:26]} Nd8 {[%emt 0:00:12]} 41. Rc8 {[%emt 0:00:42]} Qa1+ {[%emt 0:00:17]} 42. Kh2 $2 {[%emt 0:00:07]} (42. Bd1 {mates} Qxf6 43. Rd7 (43. Rxh7 Qf1+ 44. Kh2 Qf4+ 45. Kg1 Qd4+ 46. Kh1 Qxd1+ 47. Kh2 Ke8 $16) 43... Ke8 44. Rcxd8+ (44. Rdxd8+ Ke7 $18) 44... Qxd8 45. Rxd8+ Kxd8 46. Bxh5 Kd7 47. a5 (47. Bg4+ Kc6 $18)) 42... Qe5+ {[%emt 0:00:09]} 43. Kg1 {[%emt 0:00:15]} Qd4+ {[%emt 0:00:46]} 44. Kh1 $2 {[%emt 0:02:00]} (44. Kf1 Qxf6+ 45. Ke1) 44... Qa1+ {[%emt 0:00:01] [#]} 45. Kh2 $2 {[%emt 0:00:00]} (45. Bd1 $1 {[%cal Rc8d8]} Qxf6 46. Rd7 (46. Rxh7 Qf1+ 47. Kh2 Qf4+ 48. Kg1 Qd4+ 49. Kh1 Qxd1+ 50. Kh2 Ke8 $16)) 45... Qe5+ {[%emt 0:00:07]} 46. Kg1 {[%emt 0:00:00]} Qd4+ $1 {[%emt 0:00:12][%mdl 32768] Weighted Error Value: White=0.57/Black=0.35.  Mistake:       	White=4     	Black=3      Inaccurate:     	---       	Black=4      OK:         	White=13    	Black=8      Best:        	White=3     	Black=4      Strong:       	White=1     	Black=2     . An unexpected result.} 1/2-1/2

[Event "VIII Open Semana Santa 2024"]
[Site "San Vicente del Raspeig"]
[Date "2024.03.30"]
[Round "6.19"]
[White "Espinosa Aranda, Angel"]
[Black "Neagu, Roberto Florin"]
[Result "1-0"]
[ECO "A30"]
[WhiteElo "2440"]
[BlackElo "2217"]
[Annotator "TA"]
[PlyCount "67"]
[EventDate "2024.03.27"]
[EventType "swiss"]
[EventCountry "ESP"]
[SourceTitle "playchess.com"]
[Source "ChessBase"]
[SourceQuality "1"]
[TimeControl "5400+30"]

{[%evp 21,67,20,29,29,50,16,15,31,29,25,106,109,105,115,101,96,98,97,104,90,92,81,117,116,108,105,115,122,119,116,137,131,152,161,138,155,131,130,228,240,213,231,275,259,352,334,353,339]} 1. c4 {[%emt 0:00:06]} c5 {[%emt 0:02:00]} 2. Nf3 {[%emt 0:01:11]} Nf6 {[%emt 0:01:34]} 3. g3 {[%emt 0:01:40]} g6 {[%emt 0:02:15]} 4. b3 {[%emt 0:00:17]} Bg7 {[%emt 0:00:36]} 5. Bb2 {[%emt 0:00:04]} b6 {[%emt 0:00:47]} 6. Bg2 {[%emt 0:06:07]} Bb7 {[%emt 0:00:08]} 7. O-O {[%emt 0:00:25]} O-O {[%emt 0:00:14]} 8. d4 {[%emt 0:01:39]} e6 {[%emt 0:08:59]} 9. Nc3 {[%emt 0:03:05]} d5 {[%emt 0:04:32]} 10. dxc5 {[%emt 0:07:15]} bxc5 {[%emt 0:00:25]} 11. cxd5 {[%emt 0:02:33]} exd5 {[%emt 0:01:20]} 12. Rc1 {[%emt 0:00:11]} Nbd7 {[%emt 0:15:57]} 13. Na4 {[%emt 0:05:02]} Qe7 {[%emt 0:01:34]} 14. Ne1 {[%emt 0:02:34] The position is equal.} Rac8 {[%emt 0:20:05]} 15. Nd3 {[%emt 0:01:52]} Ne4 {[%emt 0:02:02]} (15... Rfe8 $11) 16. Bxg7 $16 {[%emt 0:02:37]} Kxg7 {[%emt 0:00:09]} 17. Bxe4 $1 {[%emt 0:00:35]} dxe4 {[%emt 0:10:15] [#]} 18. Ndxc5 {[%emt 0:00:08][%mdl 512]} Nf6 {[%emt 0:03:45]} 19. Nxb7 {[%emt 0:04:27]} Qxb7 {[%emt 0:00:13]} 20. Qd4 {[%emt 0:04:55]} Rfd8 {[%emt 0:01:07]} 21. Qe3 {[%emt 0:02:57] White is more active.} Qd7 {[%emt 0:00:18]} 22. Kg2 {[%emt 0:02:17]} Rxc1 {[%emt 0:00:49]} 23. Rxc1 {[%emt 0:00:09]} (23. Qxc1 h5 $14) 23... Qd2 {[%emt 0:00:22]} 24. Qxd2 {[%emt 0:03:47]} Rxd2 {[%emt 0:00:05][%mdl 4096] Endgame. KRN-KRN} 25. Nc3 {[%emt 0:00:02]} Ng4 {[%emt 0:08:35]} 26. h3 {[%emt 0:47:35]} ({Much less strong is} 26. Nxe4 Rxe2 27. h3 Rxe4 $16) 26... Ne5 {[%emt 0:01:26] [#]} 27. Kf1 $1 {[%emt 0:00:00]} ({Don't take} 27. Nxe4 Rxe2 28. Nc3 Rd2 $16) 27... f5 {[%emt 0:03:13]} 28. Ke1 {[%emt 0:00:00]} Rd7 {[%emt 0:00:58]} 29. Na4 {[%emt 0:00:00]} g5 {[%emt 0:11:17]} (29... Kf6 $16 {was necessary.} 30. Rc5 Ke6) 30. Rc5 $18 {[%emt 0:00:00]} Kf6 {[%emt 0:00:00]} 31. Nc3 {[%emt 0:00:00]} Ke6 {[%emt 0:00:00]} 32. Ra5 {[%emt 0:00:00]} Nc6 {[%emt 0:00:00]} 33. Ra6 {[%emt 0:00:00]} Kd6 {[%emt 0:00:00]} 34. b4 {[%emt 0:00:00] Weighted Error Value: White=0.02 (flawless) /Black=0.24 (precise) .  Mistake:       	---       	Black=2      Inaccurate:     	White=1     	Black=2      OK:         	White=14    	Black=7      Best:        	White=2     	Black=1      Strong:       	White=1     	---        Brilliant:      	White=1     	---} 1-0

[Event "VIII Open Semana Santa 2024"]
[Site "San Vicente del Raspeig"]
[Date "2024.03.30"]
[Round "6.20"]
[White "Persson Bogdanovic, Nils Oskar"]
[Black "Schulman, Julia"]
[Result "0-1"]
[ECO "B75"]
[WhiteElo "1864"]
[BlackElo "1732"]
[Annotator "NA RC COMBH"]
[PlyCount "92"]
[EventDate "2024.03.27"]
[EventType "swiss"]
[EventCountry "ESP"]
[SourceTitle "playchess.com"]
[Source "ChessBase"]
[SourceQuality "1"]
[TimeControl "5400+30"]

1. e4 {[%emt 0:00:08]} c5 {[%emt 0:00:08]} 2. Nf3 {[%emt 0:00:18]} d6 {[%emt 0:00:40]} 3. d4 {[%emt 0:00:12]} cxd4 {[%emt 0:00:07]} 4. Nxd4 {[%emt 0:00:03]} Nf6 {[%emt 0:00:25]} 5. Nc3 {[%emt 0:00:14]} g6 {[%emt 0:00:31]} 6. Be3 {[%emt 0:01:31]} Bg7 {[%emt 0:00:28]} 7. f3 {[%emt 0:00:43]} a6 {[%emt 0:00:51]} 8. a4 {[%emt 0:02:59]} Nbd7 {[%emt 0:03:51]} 9. Qd2 {[%emt 0:03:17]} h5 {[%emt 0:00:45]} 10. a5 {[%emt 0:04:27]} O-O {[%emt 0:01:27]} 11. Bh6 {[%emt 0:03:12]} Ne5 {[%emt 0:03:21]} 12. Bxg7 {[%emt 0:01:43]} Kxg7 {[%emt 0:00:06]} 13. Na4 {[%emt 0:01:51]} Qc7 {[%emt 0:03:36]} 14. Nb6 {[%emt 0:01:37]} Rb8 {[%emt 0:00:35]} 15. Ra3 {[%emt 0:02:21]} Ned7 {[%emt 0:07:22]} 16. Rc3 {[%emt 0:08:28]} Qd8 {[%emt 0:00:19]} 17. Qe3 {[%emt 0:05:03]} Nxb6 {[%emt 0:01:20]} 18. axb6 {[%emt 0:00:10]} Bd7 {[%emt 0:02:55]} 19. Rc7 {[%emt 0:12:41]} Ne8 {[%emt 0:01:08]} 20. Nb3 {[%emt 0:10:04]} Bc6 {[%emt 0:02:17]} 21. Nd4 {[%emt 0:03:02]} Nxc7 {[%emt 0:01:55]} 22. Nf5+ {[%emt 0:01:49]} Kg8 {[%emt 0:15:29]} 23. bxc7 {[%emt 0:01:27]} Qxc7 {[%emt 0:00:43]} 24. Qh6 {[%emt 0:00:03]} Qa5+ {[%emt 0:00:18]} 25. Kf2 {[%emt 0:03:48]} Qe5 {[%emt 0:00:38]} 26. Qg5 {[%emt 0:02:24]} Rbe8 {[%emt 0:05:30]} 27. Bc4 {[%emt 0:01:37]} e6 {[%emt 0:06:41]} 28. g4 {[%emt 0:04:34]} exf5 {[%emt 0:15:44]} 29. Qxg6+ {[%emt 0:00:11]} Qg7 {[%emt 0:01:07]} 30. gxf5 {[%emt 0:05:20]} Qxg6 {[%emt 0:00:29]} 31. fxg6 {[%emt 0:00:02]} Kg7 {[%emt 0:01:39]} 32. gxf7 {[%emt 0:00:34]} Rd8 {[%emt 0:01:40]} 33. Rg1+ {[%emt 0:00:55]} Kf6 {[%emt 0:00:14]} 34. Rg8 {[%emt 0:00:49]} Ke7 {[%emt 0:01:07]} 35. Kg3 {[%emt 0:02:13]} d5 {[%emt 0:00:40]} 36. Bb3 {[%emt 0:18:40]} Rxg8+ {[%emt 0:00:30]} 37. fxg8=Q Rxg8+ {[%emt 0:00:07]} 38. Kh4 {[%emt 0:00:00]} Rg2 {[%emt 0:01:07]} 39. exd5 {[%emt 0:00:00]} Be8 {[%emt 0:00:15]} 40. h3 {[%emt 0:00:00]} b5 {[%emt 0:01:42]} 41. f4 {[%emt 0:00:00]} a5 {[%emt 0:00:29]} 42. f5 {[%emt 0:00:00]} a4 {[%emt 0:00:17]} 43. c4 {[%emt 0:00:00]} axb3 {[%emt 0:01:01]} 44. c5 {[%emt 0:00:00]} Rxb2 {[%emt 0:00:26]} 45. c6 {[%emt 0:00:00]} Rc2 {[%emt 0:00:44]} 46. Kg5 {[%emt 0:00:00]} b2 {[%emt 0:20:46]} 0-1

[Event "VIII Open Semana Santa 2024"]
[Site "San Vicente del Raspeig"]
[Date "2024.03.31"]
[Round "7.1"]
[White "Alekseenko, Kirill"]
[Black "Heimann, Mark"]
[Result "1-0"]
[ECO "C70"]
[WhiteElo "2650"]
[BlackElo "2435"]
[Annotator "TA"]
[PlyCount "65"]
[EventDate "2024.03.27"]
[EventType "swiss"]
[EventCountry "ESP"]
[SourceTitle "playchess.com"]
[Source "ChessBase"]
[SourceQuality "1"]
[TimeControl "5400+30"]

{[%evp 9,65,26,54,29,30,31,16,29,22,13,0,-14,-18,-43,-50,-42,-45,-87,0,0,0,0,114,110,233,237,168,171,341,332,333,322,492,95,165,176,297,312,321,316,320,323,313,311,410,403,606,607,743,654,645,614,812,643,635,595,1146,1139]} 1. e4 {[%emt 0:02:37]} e5 {[%emt 0:00:03]} 2. Nf3 {[%emt 0:00:52]} Nc6 {[%emt 0:00:03]} 3. Bb5 {[%emt 0:01:01]} a6 {[%emt 0:00:04]} 4. Ba4 {[%emt 0:00:22]} Nge7 {[%emt 0:00:05]} 5. c3 {[%emt 0:01:28]} Ng6 {[%emt 0:00:13]} 6. O-O {[%emt 0:04:31][%cal Bh1f1,Bf1e1,Be1e3,Be3e4][%mdl 32]} d5 {[%emt 0:00:11]} 7. exd5 {[%emt 0:11:46]} Qxd5 {[%emt 0:00:04]} 8. d4 {[%emt 0:00:38][%cal Oc3c4] The position is equal.} Bg4 {[%emt 0:00:05]} 9. Nbd2 {[%emt 0:01:14]} exd4 {[%emt 0:02:58]} 10. Re1+ {[%emt 0:22:27]} Be7 {[%emt 0:00:06]} 11. cxd4 {[%emt 0:01:46]} O-O-O {[%emt 0:06:56]} 12. Bb3 {[%emt 0:02:17]} Qf5 {[%emt 0:16:01][%cal Oe7b4] Hoping for ...Bb4!} 13. h3 {[%emt 0:03:28]} Bxf3 {[%emt 0:25:27]} ({Black should try} 13... Bxh3 $1 $17 14. gxh3 Nxd4 15. Nxd4 Rxd4) 14. Nxf3 $11 {[%emt 0:03:35]} Nh4 {[%emt 0:02:43]} 15. Re3 {[%emt 0:05:42]} Qh5 {[%emt 0:04:16]} (15... Qf6 $11 {keeps the balance.}) 16. d5 $1 $16 {[%emt 0:03:13]} Bf6 {[%emt 0:04:22]} (16... Rd7 $16) 17. Nxh4 $18 {[%emt 0:02:27]} Qxh4 {[%emt 0:00:07]} 18. Qd3 {[%emt 0:00:45] Strongly threatening Qf5+.} Kb8 $2 {[%emt 0:07:34]} (18... Rd7 {was called for.} 19. Re4 Qh5) 19. Re4 $1 {[%emt 0:01:55]} Qh5 {[%emt 0:00:03]} 20. Bf4 $1 {[%emt 0:01:28]} Be5 {[%emt 0:02:10]} (20... Na7 {keeps fighting.} 21. g4 Qg6) 21. Be3 $2 {[%emt 0:07:34] A strong pair of Bishops.} (21. Ba4 $1 $18 {[%cal Ra4c6] and the rest is easy.} f5 22. Rxe5 Nxe5 23. Bxe5) 21... Qf5 {[%emt 0:10:03]} (21... Bd6 $16) 22. g4 $1 $36 {[%emt 0:03:53][%mdl 2048] White is really pushing.} Qg6 {[%emt 0:01:47] [#]} (22... Qf6 $142) 23. Qc2 $1 {[%emt 0:02:52]} f5 {[%emt 0:08:42]} 24. dxc6 {[%emt 0:00:12]} ({Stronger than} 24. Ra4 Ne7 25. Re1 Bd6 $15 (25... Nxd5 26. Ba7+ Kxa7 27. Rxe5 $14)) 24... fxe4 {[%emt 0:00:06] [#]} 25. Qc5 {[%emt 0:00:05] Inhibits Bd4. White wants to mate with Qa7+.} Qxc6 {[%emt 0:00:06]} 26. Qxe5 {[%emt 0:00:26]} Rhe8 {[%emt 0:01:09] Black is weak on the dark squares} 27. Qxg7 {[%emt 0:00:37]} h5 {[%emt 0:01:08]} (27... Rd7 $142 28. Qg5 Rh8) 28. Rc1 {[%emt 0:01:02] White is clearly winning.} Qd6 {[%emt 0:00:11]} 29. gxh5 {[%emt 0:01:26]} Rd7 {[%emt 0:00:43]} 30. Qg6 {[%emt 0:00:29]} Qf8 {[%emt 0:00:38]} 31. h6 {[%emt 0:00:29] Repels Rg7. Threatens to win with Rd1.} Rd6 {[%emt 0:00:18]} 32. Qf7 {[%emt 0:00:19]} Rxh6 {[%emt 0:01:19]} 33. Bxh6 {[%emt 0:00:44] Weighted Error Value: White=0.35/Black=0.59.  Missed win:     	White=1     	---        Mistake:       	---       	Black=8      Inaccurate:     	---       	Black=1      OK:         	White=9     	Black=10     Best:        	White=2     	Black=1      Strong:       	White=4     	---} 1-0

[Event "VIII Open Semana Santa 2024"]
[Site "San Vicente del Raspeig"]
[Date "2024.03.31"]
[Round "7.2"]
[White "Beydullayeva, Govhar"]
[Black "Piorun, Kacper"]
[Result "0-1"]
[ECO "A88"]
[WhiteElo "2374"]
[BlackElo "2599"]
[Annotator "TA"]
[PlyCount "80"]
[EventDate "2024.03.27"]
[EventType "swiss"]
[EventCountry "ESP"]
[SourceTitle "playchess.com"]
[Source "ChessBase"]
[SourceQuality "1"]
[TimeControl "5400+30"]

{[%evp 19,80,20,6,0,22,25,32,27,35,35,29,18,31,18,45,44,33,24,29,43,40,33,40,18,12,23,33,-8,14,-21,0,-61,-65,-137,-130,-136,-145,-135,-144,-212,-218,-319,-284,-386,-340,-337,-306,-383,-378,-358,-354,-1320,-1257,-29984,-29985,-29984,-29984,-29984,-29985,-29984,-29985,-29982,-29983]} 1. d4 {[%emt 0:00:21]} f5 {[%emt 0:00:08]} 2. Nf3 {[%emt 0:00:32]} Nf6 {[%emt 0:00:07]} 3. g3 {[%emt 0:00:14]} g6 {[%emt 0:00:06]} 4. Bg2 {[%emt 0:00:04]} Bg7 {[%emt 0:00:05]} 5. c4 {[%emt 0:00:32]} O-O {[%emt 0:00:10]} 6. O-O {[%emt 0:01:20]} d6 {[%emt 0:00:41]} 7. Nc3 {[%emt 0:00:12]} c6 {[%emt 0:01:07]} 8. d5 {[%emt 0:05:13]} e5 {[%emt 0:00:07]} 9. dxe6 {[%emt 0:00:49]} Bxe6 {[%emt 0:00:06]} 10. b3 {[%emt 0:02:13]} Na6 {[%emt 0:00:42][%cal Bb8a6,Ba6c5,Bc5e6][%mdl 32]} 11. Be3 {[%emt 0:10:38]} Ng4 {[%emt 0:10:30][%cal Og4e3] [#] Hoping for ...Nxe3!} 12. Bd4 {[%emt 0:06:20]} Ne5 {[%emt 0:00:06]} 13. Qd2 {[%emt 0:03:50] White is slightly better.} Qe7 {[%emt 0:02:04]} 14. Rad1 {[%emt 0:01:29]} Nc5 {[%emt 0:06:23]} 15. Be3 {[%emt 0:07:19]} Nf7 {[%emt 0:08:42]} 16. Nd4 {[%emt 0:05:20]} Bd7 {[%emt 0:02:16]} 17. Nc2 {[%emt 0:11:41]} Ne6 {[%emt 0:04:28]} 18. f4 {[%emt 0:02:47]} Rfe8 {[%emt 0:03:33]} 19. Bf2 {[%emt 0:00:51]} Qf6 {[%emt 0:01:44]} 20. Nd4 {[%emt 0:01:35]} Nc5 {[%emt 0:02:09]} 21. b4 {[%emt 0:03:53]} Ne4 {[%emt 0:00:33]} 22. Nxe4 {[%emt 0:00:07]} fxe4 {[%emt 0:00:05]} 23. Be3 {[%emt 0:04:09]} Rad8 {[%emt 0:07:10]} 24. h3 {[%emt 0:01:17]} c5 {[%emt 0:13:45]} 25. Nb3 {[%emt 0:00:10]} (25. Nb5 $11 Bxb5 26. cxb5) 25... b6 $15 {[%emt 0:01:19]} 26. bxc5 {[%emt 0:04:52] White is now going downhill.} (26. g4 $15) 26... dxc5 $17 {[%emt 0:00:06][%cal Od7h3] ...Bxh3! would now be deadly.} 27. Qc2 {[%emt 0:00:06]} Nd6 {[%emt 0:03:27]} 28. g4 {[%emt 0:00:46]} Bc6 {[%emt 0:02:29]} 29. Rd2 {[%emt 0:07:46]} (29. Bf2 $17 {is a better defense.}) 29... Qe6 $19 {[%emt 0:02:50]} 30. Rc1 {[%emt 0:19:04]} (30. Rfd1 {might work better.}) 30... h5 {[%emt 0:00:25]} 31. Qd1 {[%emt 0:00:00]} Bf6 {[%emt 0:04:59]} 32. g5 {[%emt 0:00:00]} Be7 {[%emt 0:01:20][%cal Od6f5]} ({Inferior is} 32... Nxc4 33. Rxc4 (33. gxf6 $2 {loses.} Nxe3 34. Qe1 Qxf6 $19) 33... Qxc4 34. gxf6 Rxd2 35. Qxd2 $14) 33. Qc2 {[%emt 0:00:00]} Nf5 {[%emt 0:00:38]} 34. Rxd8 {[%emt 0:00:00]} Rxd8 {[%emt 0:00:11]} 35. Kf2 {[%emt 0:00:00] [#]} (35. Bf2 e3 36. Be1) 35... Bxg5 $1 {[%emt 0:02:06][%mdl 512]} 36. fxg5 {[%emt 0:00:26]} (36. Bxc5 Bxf4) 36... Qe5 {[%emt 0:00:07] Black mates.} 37. Rd1 {[%emt 0:01:46]} Qg3+ {[%emt 0:00:07]} 38. Kg1 {[%emt 0:00:05]} Nxe3 {[%emt 0:01:07][%csl Ge3][%cal Rg3g2]} 39. Rxd8+ {[%emt 0:00:36]} Kf7 {[%emt 0:00:05][%csl Ge3][%cal Rg3g2]} 40. Rd7+ {[%emt 0:00:39]} Ke8 {[%emt 0:00:06] Weighted Error Value: White=0.63/Black=0.06 (flawless) .  Mistake:       	White=5     	---        Inaccurate:     	White=4     	Black=1      OK:         	White=10    	Black=13} 0-1